[Event "Pia Cramling Ladies Open 2018"]
[Site "Stockholm"]
[Date "2018.09.01"]
[Round "2"]
[White "Rinne, Heini"]
[Black "Tuominen, Tanja"]
[Result "1/2-1/2"]
[ECO "D13"]
[WhiteElo "1760"]
[BlackElo "2076"]
[Annotator "NA"]
[PlyCount "67"]
[EventDate "2018.09.01"]
[EventType "swiss"]
[EventCountry "SWE"]
[SourceTitle "playchess.com"]
[Source "ChessBase"]
[SourceQuality "1"]
[TimeControl "1800+10"]

1. d4 {[%emt 0:00:00]} d5 {[%emt 0:00:00]} 2. c4 {[%emt 0:00:04]} c6 {[%emt 0:00:33]} 3. cxd5 {[%emt 0:01:24]} cxd5 {[%emt 0:00:04]} 4. Nf3 {[%emt 0:00:03]} Nc6 {[%emt 0:00:17]} 5. Nc3 {[%emt 0:00:05]} Nf6 {[%emt 0:00:03]} 6. Bf4 {[%emt 0:00:06]} a6 {[%emt 0:00:11]} 7. Rc1 {[%emt 0:00:06]} Bf5 {[%emt 0:04:26]} 8. e3 {[%emt 0:01:32]} e6 {[%emt 0:01:46]} 9. Bd3 {[%emt 0:08:44] D13: Slav Defence: Exchange variation without ...Bf5} (9. Qb3 Ra7 10. Be2 Be7 11. O-O O-O 12. Na4 Nd7 13. h3 Na5 14. Qc3 Nc4 15. b3 Nd6 16. Nc5 Nxc5 17. dxc5 {1-0 (48) Xiong,J (2665)-Jumabayev,R (2621) Saint Louis 2018}) 9... Bxd3 {[%emt 0:02:02]} 10. Qxd3 {[%emt 0:00:43]} Be7 {[%emt 0:00:09]} 11. O-O {[%emt 0:01:36] LiveBook: 15 Games} Nh5 {[%emt 0:00:47]} 12. Na4 $146 {[%emt 0:05:35]} ({Predecessor:} 12. Be5 O-O 13. Na4 Qa5 14. Nc5 b5 15. Nd7 Rfc8 16. g4 Qd8 {½-½ (31) Khamdamov,S (2288)-Akkozov,B (2368) Tashkent 2011}) 12... O-O {[%emt 0:04:55]} 13. Nc5 {[%emt 0:00:53]} Bxc5 {[%emt 0:04:05]} 14. Rxc5 {[%emt 0:01:09]} Nxf4 {[%emt 0:00:08]} 15. exf4 {[%emt 0:00:01]} Qd6 {[%emt 0:00:04]} 16. g3 {[%emt 0:04:52]} b6 {[%emt 0:00:56]} 17. Rc3 {[%emt 0:00:36]} Nb4 {[%emt 0:01:14]} 18. Qb1 {[%emt 0:00:11]} Rac8 {[%emt 0:00:39]} 19. Rfc1 {[%emt 0:00:32]} Rc4 $16 {[%emt 0:05:28]} 20. Rxc4 {[%emt 0:03:25]} dxc4 {[%emt 0:00:01]} 21. Rxc4 {[%emt 0:00:18]} b5 {[%emt 0:00:29]} 22. Ng5 {[%emt 0:01:13]} g6 {[%emt 0:01:31]} 23. Ne4 {[%emt 0:00:01]} Qe7 {[%emt 0:00:02]} 24. Rc5 {[%emt 0:00:20]} Rd8 {[%emt 0:00:27]} 25. a3 {[%emt 0:00:08]} Nd5 {[%emt 0:00:40]} 26. Qc2 {[%emt 0:00:03]} b4 {[%emt 0:01:40]} 27. Rc8 {[%emt 0:00:09]} bxa3 {[%emt 0:00:13]} 28. bxa3 {[%emt 0:00:11]} Kg7 {[%emt 0:00:08]} 29. Rxd8 {[%emt 0:00:08]} Qxd8 {[%emt 0:00:01]} 30. Qb2 {[%emt 0:00:05]} Qa5 {[%emt 0:00:10]} 31. Nc5 {[%emt 0:00:21]} h5 {[%emt 0:00:49]} 32. Qb7 {[%emt 0:00:21]} Nc7 {[%emt 0:00:40]} 33. Qb4 {[%emt 0:00:04]} Qb5 {[%emt 0:00:24]} 34. Qxb5 {[%emt 0:00:08]} 1/2-1/2

[Event "Pia Cramling Ladies Open 2018"]
[Site "Stockholm"]
[Date "2018.09.01"]
[Round "2"]
[White "Nilsson, Kajsa 2002"]
[Black "Johansson-Ohman, Linnea"]
[Result "1-0"]
[ECO "B18"]
[WhiteElo "1704"]
[BlackElo "1495"]
[Annotator "NA"]
[PlyCount "61"]
[EventDate "2018.09.01"]
[EventType "swiss"]
[EventCountry "SWE"]
[SourceTitle "playchess.com"]
[Source "ChessBase"]
[SourceQuality "1"]
[TimeControl "1800+10"]

1. e4 {[%emt 0:00:00]} c6 {[%emt 0:00:01]} 2. d4 {[%emt 0:00:30]} d5 {[%emt 0:00:16]} 3. Nc3 {[%emt 0:00:54]} dxe4 {[%emt 0:00:20]} 4. Nxe4 {[%emt 0:00:16]} Bf5 {[%emt 0:00:09]} 5. Ng3 {[%emt 0:02:51]} Bg6 {[%emt 0:00:27]} 6. Nf3 {[%emt 0:00:49]} Nf6 {[%emt 0:00:43]} 7. Bd3 {[%emt 0:03:19]} Bxd3 {[%emt 0:04:08]} 8. Qxd3 {[%emt 0:00:08]} e6 {[%emt 0:00:34]} 9. Bg5 {[%emt 0:01:27]} Nbd7 {[%emt 0:04:59]} 10. O-O-O {[%emt 0:03:55]} Qc7 {[%emt 0:02:59]} 11. Rhe1 {[%emt 0:01:57]} h6 {[%emt 0:02:31]} 12. Bd2 {[%emt 0:01:11]} O-O-O {[%emt 0:00:46]} 13. Qe2 {[%emt 0:02:34]} Kb8 {[%emt 0:03:57]} 14. Ne4 {[%emt 0:03:08]} Nd5 {[%emt 0:02:33]} 15. g3 {[%emt 0:02:02]} Ka8 {[%emt 0:01:08]} 16. c4 {[%emt 0:01:09]} N5f6 {[%emt 0:01:50]} 17. Bf4 {[%emt 0:00:54]} Qb6 {[%emt 0:03:08]} 18. Rd3 {[%emt 0:02:01]} Nxe4 {[%emt 0:01:05]} 19. Qxe4 {[%emt 0:00:07]} Nf6 {[%emt 0:00:28]} 20. Qe2 {[%emt 0:00:07]} Be7 {[%emt 0:00:26]} 21. Rb3 {[%emt 0:00:25]} Qa6 {[%emt 0:00:33]} 22. Kb1 {[%emt 0:00:22]} Nh5 {[%emt 0:00:21]} 23. Be3 {[%emt 0:00:49]} Rhf8 {[%emt 0:00:13]} 24. Ne5 {[%emt 0:00:23]} Bd6 {[%emt 0:00:10]} 25. Qxh5 {[%emt 0:00:25]} Bxe5 {[%emt 0:00:02]} 26. Qxe5 {[%emt 0:00:18]} Qxc4 {[%emt 0:00:01]} 27. Rc1 {[%emt 0:00:16]} Qe2 {[%emt 0:00:15]} 28. Qc7 {[%emt 0:00:09]} Rb8 {[%emt 0:00:02]} 29. Ra3 {[%emt 0:00:19]} Qb5 {[%emt 0:00:06]} 30. d5 {[%emt 0:00:08]} exd5 {[%emt 0:00:04]} 31. Rxa7# {[%emt 0:00:02]} 1-0

[Event "Pia Cramling Ladies Open 2018"]
[Site "Stockholm"]
[Date "2018.09.01"]
[Round "2"]
[White "Ristoja, Aulikki"]
[Black "Fransson, Angelina"]
[Result "0-1"]
[ECO "A45"]
[WhiteElo "1530"]
[BlackElo "2004"]
[Annotator "NA"]
[PlyCount "86"]
[EventDate "2018.09.01"]
[EventType "swiss"]
[EventCountry "SWE"]
[SourceTitle "playchess.com"]
[Source "ChessBase"]
[SourceQuality "1"]
[TimeControl "1800+10"]

1. d4 {[%emt 0:00:00]} Nf6 {[%emt 0:00:00]} 2. Bf4 {[%emt 0:00:04]} g6 {[%emt 0:00:14]} 3. Nc3 {[%emt 0:00:24]} d5 {[%emt 0:01:22] A45: Trompowsky Attack} 4. f3 {[%emt 0:01:48]} (4. e3 Bg7 5. h4 h5 6. Nf3 Bg4 7. Be2 Bxf3 8. Bxf3 c6 9. Qd2 Nbd7 10. O-O-O b5 11. Kb1 {½-½ (34) Aronian,L (2797)-Vachier Lagrave,M (2793) Caleta 2018}) 4... Bg7 {[%emt 0:01:33]} 5. Qd2 {[%emt 0:00:22] LiveBook: 7 Games} O-O {[%emt 0:02:48]} (5... c5 $5) 6. g4 {[%emt 0:00:43]} c6 {[%emt 0:03:12]} 7. h4 {[%emt 0:01:20] [#]} Re8 $146 {[%emt 0:00:19]} (7... c5 $1 $15 {[%mdl 512]} 8. e3 (8. dxc5 d4 $15) 8... cxd4 9. exd4 h5) ({Predecessor:} 7... b5 8. Bh6 a5 9. h5 Nbd7 10. Bxg7 Kxg7 11. hxg6 fxg6 {0-1 (56) Balazs,B (1300)-Koch,E (1306) Gross Doelln 2010}) 8. Bh6 {[%emt 0:01:17]} Bh8 {[%emt 0:00:12]} 9. h5 {[%emt 0:00:24]} Nfd7 {[%emt 0:01:14]} ({Black should play} 9... Nbd7 $14) 10. hxg6 {[%emt 0:00:42]} fxg6 {[%emt 0:00:03]} 11. e4 {[%emt 0:01:58]} e5 {[%emt 0:01:08]} 12. dxe5 {[%emt 0:03:30]} Nxe5 {[%emt 0:04:27]} 13. O-O-O {[%emt 0:00:56]} d4 {[%emt 0:03:54]} 14. Qxd4 {[%emt 0:02:20]} Qxd4 {[%emt 0:00:01]} 15. Rxd4 Nf7 {[%emt 0:00:10]} 16. Rd2 {[%emt 0:00:51]} Nxh6 {[%emt 0:00:03]} 17. Rxh6 {[%emt 0:00:02]} Be5 {[%emt 0:00:06]} 18. Bc4+ {[%emt 0:00:32]} Kg7 {[%emt 0:00:02]} 19. Rhh2 {[%emt 0:01:07]} Bxh2 {[%emt 0:00:52]} 20. Rxh2 {[%emt 0:00:04]} Nd7 {[%emt 0:03:02]} 21. a4 {[%emt 0:02:14]} Ne5 {[%emt 0:00:09]} 22. Be2 {[%emt 0:00:33]} Be6 {[%emt 0:00:42]} 23. b3 {[%emt 0:00:17]} Rad8 {[%emt 0:00:11]} 24. Nh3 {[%emt 0:00:42] [#]} (24. g5 $17 {was worth a try.}) 24... Rf8 $1 {[%emt 0:00:55]} 25. Ng5 {[%emt 0:00:30]} Bg8 {[%emt 0:00:02]} 26. Bd1 {[%emt 0:08:22]} h6 {[%emt 0:00:14]} 27. Nh3 {[%emt 0:00:06]} Nxf3 {[%emt 0:00:09]} 28. Rf2 {[%emt 0:00:23]} Ne5 {[%emt 0:00:21]} 29. Rxf8 {[%emt 0:00:37]} Kxf8 {[%emt 0:00:28]} 30. Nf4 {[%emt 0:00:11]} g5 {[%emt 0:00:16]} 31. Nh5 {[%emt 0:00:19]} Be6 {[%emt 0:00:08]} 32. Ng3 {[%emt 0:00:42]} Nxg4 {[%emt 0:01:39]} 33. Bxg4 {[%emt 0:00:12]} Bxg4 {[%emt 0:00:02]} 34. Kb2 {[%emt 0:00:27]} Kf7 {[%emt 0:00:51]} 35. b4 {[%emt 0:00:20]} Ke6 {[%emt 0:00:11]} 36. b5 {[%emt 0:00:09]} Ke5 {[%emt 0:00:20]} 37. Kb3 {[%emt 0:00:12]} h5 {[%emt 0:00:09]} 38. Nf1 {[%emt 0:00:14]} Be6+ {[%emt 0:01:05]} 39. Kb4 {[%emt 0:00:04]} Rd4+ {[%emt 0:00:06]} 40. Ka3 {[%emt 0:00:35]} h4 {[%emt 0:00:23]} 41. Ne3 {[%emt 0:00:26]} h3 {[%emt 0:00:20]} 42. bxc6 {[%emt 0:00:21]} bxc6 {[%emt 0:00:02]} 43. Ne2 {[%emt 0:00:18]} Rxe4 {[%emt 0:00:15]} 0-1

[Event "Pia Cramling Ladies Open 2018"]
[Site "Stockholm"]
[Date "2018.09.01"]
[Round "3"]
[White "Reizniece-Ozola, Dana"]
[Black "Rinne, Heini"]
[Result "1-0"]
[ECO "A10"]
[WhiteElo "2304"]
[BlackElo "1760"]
[Annotator "NA"]
[PlyCount "63"]
[EventDate "2018.09.01"]
[EventType "swiss"]
[EventCountry "SWE"]
[SourceTitle "playchess.com"]
[Source "ChessBase"]
[SourceQuality "1"]
[TimeControl "1800+10"]

1. c4 {[%emt 0:00:18]} g6 {[%emt 0:02:12]} 2. Nc3 {[%emt 0:00:06]} Bg7 {[%emt 0:00:07]} 3. g3 {[%emt 0:00:04]} d6 {[%emt 0:02:05]} 4. Bg2 {[%emt 0:00:04]} e5 {[%emt 0:01:34]} 5. e3 {[%emt 0:00:23]} Ne7 {[%emt 0:01:48] LiveBook: 51 Games} 6. Nge2 {[%emt 0:00:08]} O-O {[%emt 0:00:42]} 7. O-O {[%emt 0:00:06]} Nd7 {[%emt 0:00:56] A21: Englische Eröffnung} 8. f4 $146 {[%emt 0:01:34]} ({Vorgänger:} 8. d4 exd4 9. exd4 Re8 10. b3 Nf5 11. Bb2 c6 12. Qd2 Nf6 13. Rfe1 h6 14. h3 g5 15. d5 {½-½ (42) Flores,D (2569)-Vajda,L (2582) Dresden 2008}) 8... Nb6 {[%emt 0:04:20]} 9. d3 {[%emt 0:02:21]} a5 {[%emt 0:02:26]} 10. Rb1 {[%emt 0:01:15]} Nc6 {[%emt 0:02:06]} 11. Nd5 {[%emt 0:01:08]} Nxd5 {[%emt 0:02:28]} 12. cxd5 {[%emt 0:00:06]} Ne7 {[%emt 0:01:22]} 13. Bd2 {[%emt 0:00:45]} b6 {[%emt 0:00:55]} 14. Qc2 {[%emt 0:01:25]} Ba6 {[%emt 0:00:35]} 15. Rbc1 {[%emt 0:02:56]} Rc8 {[%emt 0:03:22]} 16. a3 {[%emt 0:00:47]} f5 {[%emt 0:00:35]} 17. Bc3 {[%emt 0:00:48]} c6 {[%emt 0:03:02]} (17... Qd7 $11) 18. dxc6 {[%emt 0:00:57]} Nxc6 {[%emt 0:00:02]} 19. Qb3+ {[%emt 0:02:43]} Kh8 {[%emt 0:00:07] [#]} 20. Bxc6 $1 {[%emt 0:02:42]} Rxc6 {[%emt 0:00:01]} 21. Bxe5 $1 {[%emt 0:01:03]} Rxc1 $18 {[%emt 0:00:32]} (21... Rc5 $16 22. Bxg7+ Kxg7) 22. Bxg7+ {[%emt 0:00:08]} Kxg7 {[%emt 0:00:01]} 23. Rxc1 {[%emt 0:00:37]} Re8 {[%emt 0:00:11]} 24. Qc3+ {[%emt 0:00:51]} Kh6 {[%emt 0:00:20]} 25. Qd4 {[%emt 0:00:33]} Qe7 {[%emt 0:00:45]} 26. Kf2 {[%emt 0:00:17]} g5 {[%emt 0:01:13]} 27. fxg5+ {[%emt 0:00:23]} Kxg5 {[%emt 0:00:11]} 28. Rc6 {[%emt 0:01:47]} Qe5 {[%emt 0:00:14]} 29. Qh4+ {[%emt 0:00:33]} Kg6 {[%emt 0:00:01]} 30. Nf4+ {[%emt 0:00:19]} Kg7 {[%emt 0:00:27]} 31. Rc7+ {[%emt 0:00:08]} Kf8 {[%emt 0:00:08]} 32. Qh6+ {[%emt 0:00:07]} 1-0

[Event "Pia Cramling Ladies Open 2018"]
[Site "Stockholm"]
[Date "2018.09.01"]
[Round "3"]
[White "Tetenkina, Irina"]
[Black "Johansson, Viktoria"]
[Result "0-1"]
[ECO "A04"]
[WhiteElo "2214"]
[BlackElo "2106"]
[Annotator "NA"]
[PlyCount "61"]
[EventDate "2018.09.01"]
[EventType "swiss"]
[EventCountry "SWE"]
[SourceTitle "playchess.com"]
[Source "ChessBase"]
[SourceQuality "1"]
[TimeControl "1800+10"]

1. Nf3 {[%emt 0:00:00]} c5 {[%emt 0:00:00]} 2. c4 {[%emt 0:00:00]} Nc6 {[%emt 0:00:00]} 3. g3 {[%emt 0:00:00]} g6 {[%emt 0:00:05]} 4. Bg2 {[%emt 0:00:00]} Bg7 {[%emt 0:00:16]} 5. O-O {[%emt 0:00:01]} e5 {[%emt 0:00:09]} 6. Nc3 {[%emt 0:00:13]} Nge7 {[%emt 0:00:29]} 7. d3 {[%emt 0:00:19]} d6 {[%emt 0:00:16]} 8. Ne1 {[%emt 0:00:43]} Be6 {[%emt 0:00:38]} 9. Nc2 {[%emt 0:00:22]} d5 {[%emt 0:00:06]} 10. cxd5 {[%emt 0:00:23]} Nxd5 {[%emt 0:00:07]} 11. Ne3 {[%emt 0:00:20] A37: Symmetrical English vs ...g6: 4 Bg2 Bg7 5 Nf3} Nde7 {[%emt 0:01:25]} 12. Ne4 {[%emt 0:01:39]} (12. Nc4 O-O 13. a4 Rb8 14. a5 h6 15. f4 Kh7 16. fxe5 Nxe5 17. Bf4 Bxc4 18. dxc4 Nxc4 19. Bxb8 Qxb8 {½-½ (40) Cyborowski,L (2543)-Istratescu,A (2651) Legnica 2013}) 12... b6 $1 {[%emt 0:01:20] LiveBook: 16 Games} 13. Bd2 {[%emt 0:06:19]} O-O {[%emt 0:00:20]} 14. Bc3 $146 {[%emt 0:01:41]} ({Predecessor:} 14. Ng5 Bd7 15. a3 h6 16. Nf3 a5 17. a4 Be6 18. Bc3 Rb8 {0-1 (56) Sedlacek,P (2222)-Nagy,G (2403) Slovakia 2015}) 14... Rc8 {[%emt 0:01:01]} 15. Nc4 {[%emt 0:01:45]} Nf5 {[%emt 0:00:43]} 16. a4 {[%emt 0:01:23]} Ncd4 {[%emt 0:02:07]} 17. Kh1 {[%emt 0:03:29]} (17. b4 $11) 17... h5 {[%emt 0:03:03]} 18. h4 {[%emt 0:01:33]} Bd5 {[%emt 0:05:14]} 19. Ne3 $2 {[%emt 0:06:32]} (19. e3 $11 Nc6 20. Qb3) 19... Nxe3 {[%emt 0:01:03]} 20. fxe3 {[%emt 0:00:18]} Nf5 {[%emt 0:00:22]} 21. Rf3 {[%emt 0:01:13]} Qe7 {[%emt 0:01:37]} 22. Kh2 {[%emt 0:00:29]} Bh6 {[%emt 0:02:07]} (22... Nh6 $19 23. a5 Ng4+ 24. Kg1 b5) 23. Qg1 {[%emt 0:02:23]} Rcd8 {[%emt 0:04:40]} 24. Bh3 {[%emt 0:00:07] [#]} Bxe4 $1 {[%emt 0:00:47]} 25. dxe4 $17 {[%emt 0:00:01]} Nd6 {[%emt 0:00:24]} 26. g4 {[%emt 0:00:51]} Qxh4 {[%emt 0:00:46]} 27. Be1 {[%emt 0:01:16]} Qg5 {[%emt 0:00:06]} 28. gxh5 {[%emt 0:00:29]} Qxh5 {[%emt 0:00:14]} 29. Bg3 {[%emt 0:00:30]} Nxe4 {[%emt 0:00:15]} 30. Raf1 {[%emt 0:00:23]} Ng5 {[%emt 0:00:34]} 31. Ra1 0-1

[Event "Pia Cramling Ladies Open 2018"]
[Site "Stockholm"]
[Date "2018.09.01"]
[Round "3"]
[White "Andersson, Christin"]
[Black "Fransson, Pia"]
[Result "1/2-1/2"]
[ECO "B01"]
[WhiteElo "2077"]
[BlackElo "1549"]
[Annotator "NA"]
[PlyCount "128"]
[EventDate "2018.09.01"]
[EventType "swiss"]
[EventCountry "SWE"]
[SourceTitle "playchess.com"]
[Source "ChessBase"]
[SourceQuality "1"]
[TimeControl "1800+10"]

1. e4 {[%emt 0:00:00]} d5 {[%emt 0:00:00]} 2. exd5 {[%emt 0:00:00]} Qxd5 {[%emt 0:00:00]} 3. Nc3 {[%emt 0:00:00]} Qd8 {[%emt 0:00:00]} 4. d4 {[%emt 0:00:04]} Nf6 {[%emt 0:00:00]} 5. Nf3 {[%emt 0:00:02]} Bg4 {[%emt 0:00:00]} 6. Be2 {[%emt 0:00:06]} e6 {[%emt 0:00:06]} 7. Bf4 {[%emt 0:00:15] B01: Skandinavische Verteidigung} (7. O-O c6 8. h3 Bh5 9. a3 Bd6 10. Ne5 Bxe2 11. Qxe2 Nbd7 12. Bg5 Qc7 13. Rfe1 O-O 14. Nxd7 Nxd7 15. Ne4 {1-0 (47) Shkuran,D (2425)-Vovk,Y (2611) Lvov 2016}) 7... Be7 {[%emt 0:00:05]} 8. O-O {[%emt 0:00:14]} O-O {[%emt 0:00:03]} 9. Rc1 $146 {[%emt 0:00:25]} ({Vorgänger:} 9. h3 Bh5 10. Qd2 c6 11. Rad1 Nbd7 12. Ne5 Bxe2 13. Qxe2 Nd5 14. Nxd5 cxd5 15. Rd3 {1-0 (54) Timoshin,A (1852)-Petrov,D (2260) Tallinn 2018}) 9... Nbd7 {[%emt 0:00:18]} 10. Ne4 {[%emt 0:00:34]} c6 {[%emt 0:00:25]} 11. c4 {[%emt 0:00:12]} Nxe4 {[%emt 0:00:26]} 12. Qb3 {[%emt 0:00:28]} Nb6 {[%emt 0:01:20]} 13. Rfd1 {[%emt 0:00:24]} Bxf3 {[%emt 0:00:11]} 14. Bxf3 {[%emt 0:00:20]} Nd6 {[%emt 0:00:32]} 15. c5 {[%emt 0:00:09]} Nb5 {[%emt 0:03:14]} 16. cxb6 {[%emt 0:00:16]} Qxb6 {[%emt 0:00:07]} 17. a4 {[%emt 0:00:45]} Nxd4 {[%emt 0:01:02]} 18. Qxb6 {[%emt 0:00:20]} Nxf3+ {[%emt 0:00:03]} 19. gxf3 {[%emt 0:00:02]} axb6 {[%emt 0:00:05]} 20. Rd7 {[%emt 0:00:15]} Bf6 {[%emt 0:00:13]} 21. Rxb7 {[%emt 0:00:07]} Rxa4 {[%emt 0:00:12]} 22. Be3 {[%emt 0:00:19]} Bxb2 {[%emt 0:00:44]} 23. Rxc6 {[%emt 0:00:05]} Bd4 {[%emt 0:01:00]} 24. Bxd4 {[%emt 0:00:15]} Rxd4 {[%emt 0:00:03]} 25. Rcxb6 {[%emt 0:00:11]} Rfd8 {[%emt 0:00:27]} 26. Rb8 {[%emt 0:00:02]} Kf8 {[%emt 0:00:08]} 27. Kg2 {[%emt 0:00:08]} Ke7 {[%emt 0:01:05]} 28. Rxd8 {[%emt 0:00:02]} Rxd8 {[%emt 0:00:04]} 29. Rb3 {[%emt 0:00:10]} Rd4 {[%emt 0:00:33]} 30. Ra3 {[%emt 0:00:08]} Kf6 {[%emt 0:00:06]} 31. Rb3 {[%emt 0:00:17]} h5 {[%emt 0:00:11]} 32. Rb5 {[%emt 0:00:25]} g5 {[%emt 0:00:15]} 33. Ra5 {[%emt 0:00:09]} e5 {[%emt 0:01:01]} 34. Ra3 {[%emt 0:00:09]} Kf5 {[%emt 0:00:40]} 35. Ra7 {[%emt 0:00:45]} f6 {[%emt 0:00:14]} 36. Ra6 {[%emt 0:00:28]} Kg6 {[%emt 0:02:00]} 37. Ra3 {[%emt 0:00:09]} Kf7 {[%emt 0:01:36]} 38. Ra6 {[%emt 0:00:30]} Ke7 {[%emt 0:00:23]} 39. Ra7+ {[%emt 0:00:12]} Rd7 {[%emt 0:00:05]} 40. Ra3 {[%emt 0:00:14]} Ke6 {[%emt 0:00:56]} 41. Rb3 {[%emt 0:00:09]} Rd6 {[%emt 0:00:34]} 42. Ra3 {[%emt 0:00:06]} Kf5 {[%emt 0:00:11]} 43. Rb3 {[%emt 0:00:25]} Kf4 {[%emt 0:00:06]} 44. Ra3 {[%emt 0:00:21]} f5 {[%emt 0:00:14]} 45. Rb3 {[%emt 0:00:15]} Rd4 {[%emt 0:04:28]} 46. Ra3 {[%emt 0:00:09]} g4 {[%emt 0:00:52]} 47. fxg4 {[%emt 0:00:20]} hxg4 {[%emt 0:00:03]} 48. Re3 {[%emt 0:00:11]} e4 {[%emt 0:00:27]} 49. Re2 {[%emt 0:00:31]} Rd3 {[%emt 0:00:30]} 50. Ra2 {[%emt 0:00:20]} Ke5 {[%emt 0:01:04]} 51. Ra5+ {[%emt 0:00:11]} Rd5 {[%emt 0:00:01]} 52. Ra2 {[%emt 0:00:13]} f4 {[%emt 0:00:08]} 53. Rb2 {[%emt 0:02:19]} e3 {[%emt 0:03:30]} 54. fxe3 {[%emt 0:00:01]} fxe3 {[%emt 0:00:03]} 55. Kf1 $2 {[%emt 0:00:52]} (55. Rb1 $17) 55... Ke4 {[%emt 0:00:18]} 56. Ke1 {[%emt 0:00:33]} Kf3 {[%emt 0:00:20]} 57. Rb8 {[%emt 0:00:56]} Re5 $2 {[%emt 0:02:15]} (57... Rh5 $19 58. Rf8+ Kg2) 58. Rf8+ {[%emt 0:00:23]} Kg2 {[%emt 0:00:29]} (58... Ke4 $5 59. Ke2 $8 Rh5 60. Re8+ Kf4 61. Rf8+ Ke5 $11) 59. Rh8 {[%emt 0:00:58]} Kf3 {[%emt 0:00:15]} 60. Rf8+ {[%emt 0:00:31]} Kg2 {[%emt 0:00:24]} 61. Rh8 {[%emt 0:00:29]} Re4 {[%emt 0:00:03]} 62. Ke2 {[%emt 0:00:56]} g3 $11 {[%emt 0:01:12]} 63. hxg3 {[%emt 0:00:07]} Kxg3 {[%emt 0:00:07]} 64. Rg8+ {[%emt 0:00:02]} Rg4 1/2-1/2

[Event "Pia Cramling Ladies Open 2018"]
[Site "Stockholm"]
[Date "2018.09.01"]
[Round "3"]
[White "Tuominen, Tanja"]
[Black "Cramling Bellon, Anna"]
[Result "1-0"]
[ECO "B50"]
[WhiteElo "2076"]
[BlackElo "2009"]
[Annotator "NA"]
[PlyCount "101"]
[EventDate "2018.09.01"]
[EventType "swiss"]
[EventCountry "SWE"]
[SourceTitle "playchess.com"]
[Source "ChessBase"]
[SourceQuality "1"]
[TimeControl "1800+10"]

1. e4 {[%emt 0:01:44]} c5 {[%emt 0:00:00]} 2. Nf3 {[%emt 0:00:06]} d6 {[%emt 0:00:00]} 3. c3 {[%emt 0:00:02]} Nf6 {[%emt 0:00:10]} 4. Bd3 {[%emt 0:00:09]} Nc6 {[%emt 0:00:28]} 5. O-O {[%emt 0:00:05]} Bg4 {[%emt 0:00:26]} 6. h3 {[%emt 0:00:51] B50: Sicilian: 2...d6, Miscellaneous} (6. Re1 e6 7. h3 Bh5 8. Bf1 Be7 9. d3 O-O 10. Nbd2 d5 11. exd5 Nxd5 12. g3 Qc7 13. Bg2 Rad8 {½-½ (80) Miroshnichenko,E (2621)-Areshchenko,A (2691) Kiev 2012}) 6... Bh5 {[%emt 0:00:15]} 7. Bc2 {[%emt 0:02:56]} e6 {[%emt 0:01:05]} 8. d3 {[%emt 0:00:11]} Be7 {[%emt 0:01:27]} 9. Bg5 $146 {[%emt 0:00:44]} ({Predecessor:} 9. Nbd2 Qc7 10. Re1 O-O-O 11. a3 g5 12. Nc4 g4 13. hxg4 Nxg4 {½-½ (90) Kovalevskaya,E (2405)-Bodnaruk,A (2428) St Petersburg 2017}) 9... h6 {[%emt 0:01:24]} 10. Be3 {[%emt 0:02:03]} g5 {[%emt 0:04:06]} 11. d4 {[%emt 0:03:59]} g4 {[%emt 0:01:24]} 12. hxg4 {[%emt 0:00:10]} Bxg4 {[%emt 0:02:39]} 13. Nbd2 {[%emt 0:01:50]} cxd4 {[%emt 0:02:39]} 14. cxd4 {[%emt 0:00:14]} Qa5 {[%emt 0:00:15]} 15. e5 {[%emt 0:05:00]} dxe5 {[%emt 0:02:18]} 16. Nc4 {[%emt 0:00:41]} Qd5 {[%emt 0:05:06]} 17. Ncxe5 {[%emt 0:01:04]} Nxe5 {[%emt 0:01:50]} 18. dxe5 {[%emt 0:00:10]} Bxf3 {[%emt 0:04:15]} 19. Qxf3 {[%emt 0:00:19]} Qxf3 {[%emt 0:02:39]} 20. gxf3 {[%emt 0:00:22]} Nd7 {[%emt 0:00:01]} 21. Ba4 {[%emt 0:00:43]} a6 $16 {[%emt 0:00:16]} 22. Bb6 {[%emt 0:00:21]} Bd8 {[%emt 0:00:14]} 23. Rfd1 {[%emt 0:02:26]} Bxb6 {[%emt 0:00:01]} 24. Rxd7 {[%emt 0:00:27]} Bxf2+ {[%emt 0:00:03]} 25. Kxf2 {[%emt 0:00:02]} b5 {[%emt 0:00:01]} 26. Bxb5 {[%emt 0:00:14]} axb5 {[%emt 0:00:01]} 27. Rb7 {[%emt 0:00:02]} O-O {[%emt 0:00:47]} 28. Rxb5 {[%emt 0:00:22]} Rfc8 {[%emt 0:00:23]} 29. a3 {[%emt 0:02:55]} Rc4 {[%emt 0:00:14]} 30. Rg1+ {[%emt 0:00:17]} Kf8 {[%emt 0:00:11]} 31. Ke3 {[%emt 0:00:18]} Rc2 {[%emt 0:00:16]} 32. Rd1 {[%emt 0:00:37]} Rac8 {[%emt 0:00:07]} 33. Rb7 {[%emt 0:00:11]} R2c7 {[%emt 0:00:13]} 34. Rxc7 {[%emt 0:00:56]} Rxc7 {[%emt 0:00:01]} 35. b4 {[%emt 0:00:01]} Ra7 {[%emt 0:00:10]} 36. Ra1 {[%emt 0:00:04]} Ke7 {[%emt 0:00:02]} 37. a4 {[%emt 0:00:04]} Kd7 {[%emt 0:00:24]} 38. b5 {[%emt 0:00:12]} Ra5 {[%emt 0:00:02]} 39. Kd4 {[%emt 0:00:08]} Kc7 {[%emt 0:00:07]} 40. Kc5 {[%emt 0:00:02]} h5 {[%emt 0:00:08]} 41. Kb4 {[%emt 0:00:11]} Ra8 {[%emt 0:00:13]} 42. Rc1+ {[%emt 0:00:27]} Kb7 {[%emt 0:00:02]} 43. a5 {[%emt 0:01:02]} h4 {[%emt 0:00:25]} 44. a6+ {[%emt 0:00:12]} Kb8 {[%emt 0:00:20]} 45. Rh1 {[%emt 0:00:17]} Kc7 {[%emt 0:00:09]} 46. Rxh4 {[%emt 0:00:05]} Rd8 {[%emt 0:00:06]} 47. Rc4+ {[%emt 0:00:04]} Kb8 {[%emt 0:00:07]} 48. b6 {[%emt 0:00:21]} Rd5 {[%emt 0:00:18]} 49. Rc7 {[%emt 0:00:38]} Rxe5 {[%emt 0:00:05]} 50. a7+ {[%emt 0:00:03]} Ka8 {[%emt 0:00:02]} 51. Rc8+ {[%emt 0:00:02]} 1-0